[Event "Live Chess"]
[Site "Chess.com"]
[Date "2010.12.14"]
[Round "-"]
[White "hipposcottimus"]
[Black "Maestrodelacruz"]
[Result "1-0"]
[CurrentPosition "2r5/p3kpR1/2r1p3/P1NpP3/1Pb2P2/8/3B2PP/3Q2K1 b - -"]
[Timezone "UTC"]
[ECO "C02"]
[ECOUrl "https://www.chess.com/openings/French-Defense-Advance-Variation-3...c5"]
[UTCDate "2010.12.14"]
[UTCTime "03:59:06"]
[WhiteElo "1679"]
[BlackElo "1661"]
[TimeControl "60"]
[Termination "hipposcottimus won on time"]
[StartTime "03:59:06"]
[EndDate "2010.12.14"]
[EndTime "04:01:08"]
[Link "https://www.chess.com/game/live/77092821"]

1. e4 {[%clk 0:01:00]} 1... e6 {[%clk 0:01:00]} 2. d4 {[%clk 0:00:58.3]} 2... d5 {[%clk 0:00:59.6]} 3. e5 {[%clk 0:00:58]} 3... c5 {[%clk 0:00:58.2]} 4. f4 {[%clk 0:00:57]} 4... Nc6 {[%clk 0:00:57.6]} 5. c3 {[%clk 0:00:53.3]} 5... Qb6 {[%clk 0:00:56.3]} 6. Nf3 {[%clk 0:00:48.7]} 6... cxd4 {[%clk 0:00:55.4]} 7. cxd4 {[%clk 0:00:47.7]} 7... Bb4+ {[%clk 0:00:54.3]} 8. Nc3 {[%clk 0:00:46.7]} 8... Nge7 {[%clk 0:00:52.6]} 9. Bb5 {[%clk 0:00:44]} 9... Nf5 {[%clk 0:00:50.7]} 10. Bxc6+ {[%clk 0:00:42.4]} 10... bxc6 {[%clk 0:00:49.3]} 11. O-O {[%clk 0:00:42]} 11... c5 {[%clk 0:00:43.3]} 12. Na4 {[%clk 0:00:41.5]} 12... Qa5 {[%clk 0:00:38.5]} 13. a3 {[%clk 0:00:36.7]} 13... Bd7 {[%clk 0:00:28.8]} 14. axb4 {[%clk 0:00:35.2]} 14... Nxd4 {[%clk 0:00:23.9]} 15. Nxd4 {[%clk 0:00:32.5]} 15... cxd4 {[%clk 0:00:22.3]} 16. bxa5 {[%clk 0:00:31.5]} 16... O-O {[%clk 0:00:19.3]} 17. Nc5 {[%clk 0:00:29.5]} 17... Bb5 {[%clk 0:00:16.4]} 18. Rf2 {[%clk 0:00:25.3]} 18... Rac8 {[%clk 0:00:15]} 19. b4 {[%clk 0:00:25]} 19... Rc6 {[%clk 0:00:08.4]} 20. Bd2 {[%clk 0:00:22.1]} 20... Rfc8 {[%clk 0:00:07.1]} 21. Rf3 {[%clk 0:00:19.7]} 21... d3 {[%clk 0:00:06.3]} 22. Rxd3 {[%clk 0:00:17.9]} 22... Bxd3 {[%clk 0:00:05.3]} 23. Ra3 {[%clk 0:00:16.3]} 23... Bc4 {[%clk 0:00:03.5]} 24. Rh3 {[%clk 0:00:15.4]} 24... Kf8 {[%clk 0:00:01.5]} 25. Rxh7 {[%clk 0:00:12.7]} 25... Ke7 {[%clk 0:00:00.3]} 26. Rxg7 {[%clk 0:00:11.4]} 1-0

[Event "Live Chess"]
[Site "Chess.com"]
[Date "2010.12.14"]
[Round "-"]
[White "andrewBar"]
[Black "hipposcottimus"]
[Result "1-0"]
[CurrentPosition "8/R7/8/k7/3K4/7P/2r4P/8 b - -"]
[Timezone "UTC"]
[ECO "C55"]
[ECOUrl "https://www.chess.com/openings/Italian-Game-Two-Knights-Modern-Bishops-Opening-4...d5-5.exd5-Nxd5"]
[UTCDate "2010.12.14"]
[UTCTime "03:56:15"]
[WhiteElo "1602"]
[BlackElo "1671"]
[TimeControl "60"]
[Termination "andrewBar won on time"]
[StartTime "03:56:15"]
[EndDate "2010.12.14"]
[EndTime "03:58:33"]
[Link "https://www.chess.com/game/live/77092256"]

1. e4 {[%clk 0:01:00]} 1... e5 {[%clk 0:01:00]} 2. Nf3 {[%clk 0:00:58.6]} 2... Nc6 {[%clk 0:00:59.6]} 3. Bc4 {[%clk 0:00:57.3]} 3... Nf6 {[%clk 0:00:59.3]} 4. d3 {[%clk 0:00:53.9]} 4... d5 {[%clk 0:00:58.7]} 5. exd5 {[%clk 0:00:51.9]} 5... Nxd5 {[%clk 0:00:58.3]} 6. Bxd5 {[%clk 0:00:51.9]} 6... Qxd5 {[%clk 0:00:57.6]} 7. O-O {[%clk 0:00:51.9]} 7... Bd6 {[%clk 0:00:56.1]} 8. Nc3 {[%clk 0:00:51]} 8... Qe6 {[%clk 0:00:53.5]} 9. Ng5 {[%clk 0:00:46.8]} 9... Qd7 {[%clk 0:00:53]} 10. Qf3 {[%clk 0:00:45.3]} 10... O-O {[%clk 0:00:52]} 11. Qh3 {[%clk 0:00:43.7]} 11... Qxh3 {[%clk 0:00:47.2]} 12. Nxh3 {[%clk 0:00:43.7]} 12... Bxh3 {[%clk 0:00:46.9]} 13. gxh3 {[%clk 0:00:42.7]} 13... Nd4 {[%clk 0:00:45.9]} 14. Kh1 {[%clk 0:00:41.9]} 14... Bb4 {[%clk 0:00:41.8]} 15. Rg1 {[%clk 0:00:39.9]} 15... Bxc3 {[%clk 0:00:40.1]} 16. bxc3 {[%clk 0:00:38.6]} 16... Nxc2 {[%clk 0:00:39.8]} 17. Rb1 {[%clk 0:00:38]} 17... Nd4 {[%clk 0:00:37]} 18. Bh6 {[%clk 0:00:36.8]} 18... Nf3 {[%clk 0:00:28]} 19. Rxg7+ {[%clk 0:00:34]} 19... Kh8 {[%clk 0:00:27.5]} 20. Ra1 {[%clk 0:00:31.9]} 20... Rg8 {[%clk 0:00:24.2]} 21. Rxg8+ {[%clk 0:00:30.7]} 21... Rxg8 {[%clk 0:00:23.8]} 22. Be3 {[%clk 0:00:28.2]} 22... Rg6 {[%clk 0:00:22.4]} 23. d4 {[%clk 0:00:26.8]} 23... exd4 {[%clk 0:00:21.1]} 24. Bxd4+ {[%clk 0:00:25.7]} 24... Kg8 {[%clk 0:00:19.1]} 25. Be3 {[%clk 0:00:24]} 25... a6 {[%clk 0:00:18]} 26. Rb1 {[%clk 0:00:23.3]} 26... Rf6 {[%clk 0:00:17.5]} 27. Rxb7 {[%clk 0:00:21.8]} 27... Ne5 {[%clk 0:00:17]} 28. Rxc7 {[%clk 0:00:20.8]} 28... Kg7 {[%clk 0:00:16.6]} 29. Ra7 {[%clk 0:00:19.9]} 29... Nc4 {[%clk 0:00:15.7]} 30. Rxa6 {[%clk 0:00:19.9]} 30... Nxe3 {[%clk 0:00:14.9]} 31. fxe3 {[%clk 0:00:19.9]} 31... Rf1+ {[%clk 0:00:14.3]} 32. Kg2 {[%clk 0:00:17.5]} 32... Rc1 {[%clk 0:00:13.2]} 33. Ra4 {[%clk 0:00:17.1]} 33... Rxc3 {[%clk 0:00:12.1]} 34. Rg4+ {[%clk 0:00:17.1]} 34... Kh6 {[%clk 0:00:10.4]} 35. a4 {[%clk 0:00:17.1]} 35... Rxe3 {[%clk 0:00:09.5]} 36. a5 {[%clk 0:00:16.3]} 36... Re7 {[%clk 0:00:09.1]} 37. Ra4 {[%clk 0:00:14.4]} 37... Ra7 {[%clk 0:00:08.5]} 38. a6 {[%clk 0:00:14.4]} 38... Kg6 {[%clk 0:00:06.8]} 39. Kf3 {[%clk 0:00:14.4]} 39... Kf6 {[%clk 0:00:06.4]} 40. Ke4 {[%clk 0:00:14.4]} 40... Ke6 {[%clk 0:00:06.1]} 41. Kd4 {[%clk 0:00:14.4]} 41... Kd6 {[%clk 0:00:05.7]} 42. Kc4 {[%clk 0:00:14.4]} 42... Kc6 {[%clk 0:00:05.4]} 43. Ra1 {[%clk 0:00:11.9]} 43... Kb6 {[%clk 0:00:05]} 44. Rf1 {[%clk 0:00:08]} 44... Rxa6 {[%clk 0:00:03.6]} 45. Rxf7 {[%clk 0:00:07.1]} 45... Ka5 {[%clk 0:00:03.1]} 46. Rxh7 {[%clk 0:00:07.1]} 46... Rc6+ {[%clk 0:00:02.2]} 47. Kd4 {[%clk 0:00:05.4]} 47... Rc2 {[%clk 0:00:01.1]} 48. Ra7+ {[%clk 0:00:05.2]} 1-0

[Event "Live Chess"]
[Site "Chess.com"]
[Date "2010.12.14"]
[Round "-"]
[White "Beastin01"]
[Black "hipposcottimus"]
[Result "0-1"]
[CurrentPosition "r5k1/pp6/2P3p1/8/2P1P3/K2r4/4n3/8 w - -"]
[Timezone "UTC"]
[ECO "A01"]
[ECOUrl "https://www.chess.com/openings/Nimzowitsch-Larsen-Attack-Modern-Variation-2.Bb2"]
[UTCDate "2010.12.14"]
[UTCTime "03:53:15"]
[WhiteElo "1422"]
[BlackElo "1680"]
[TimeControl "60"]
[Termination "hipposcottimus won on time"]
[StartTime "03:53:15"]
[EndDate "2010.12.14"]
[EndTime "03:55:13"]
[Link "https://www.chess.com/game/live/77091584"]

1. b3 {[%clk 0:01:00]} 1... e5 {[%clk 0:01:00]} 2. Bb2 {[%clk 0:00:59.5]} 2... e4 {[%clk 0:00:59.5]} 3. e3 {[%clk 0:00:59]} 3... d5 {[%clk 0:00:59.2]} 4. Be2 {[%clk 0:00:57.1]} 4... Nf6 {[%clk 0:00:58.9]} 5. f3 {[%clk 0:00:56.7]} 5... c5 {[%clk 0:00:58.6]} 6. fxe4 {[%clk 0:00:55.6]} 6... dxe4 {[%clk 0:00:57.3]} 7. Bxf6 {[%clk 0:00:53.5]} 7... Qxf6 {[%clk 0:00:57]} 8. c3 {[%clk 0:00:53]} 8... Be7 {[%clk 0:00:54.8]} 9. Nh3 {[%clk 0:00:50.4]} 9... O-O {[%clk 0:00:54.1]} 10. Rf1 {[%clk 0:00:49.5]} 10... Qh4+ {[%clk 0:00:52.8]} 11. Nf2 {[%clk 0:00:46.6]} 11... Qxh2 {[%clk 0:00:52]} 12. c4 {[%clk 0:00:43.4]} 12... Qxg2 {[%clk 0:00:50]} 13. Nc3 {[%clk 0:00:41.7]} 13... Bh4 {[%clk 0:00:49.1]} 14. Nxe4 {[%clk 0:00:33.7]} 14... Bxf2+ {[%clk 0:00:46.5]} 15. Rxf2 {[%clk 0:00:31]} 15... Qxe4 {[%clk 0:00:44.7]} 16. d3 {[%clk 0:00:27.9]} 16... Qh1+ {[%clk 0:00:44.3]} 17. Rf1 {[%clk 0:00:26.8]} 17... Qh4+ {[%clk 0:00:42.8]} 18. Rf2 {[%clk 0:00:24.5]} 18... Bh3 {[%clk 0:00:41.6]} 19. Qd2 {[%clk 0:00:22.3]} 19... Qg5 {[%clk 0:00:40.8]} 20. O-O-O {[%clk 0:00:21]} 20... Bg4 {[%clk 0:00:38.4]} 21. Bxg4 {[%clk 0:00:19.2]} 21... Qxg4 {[%clk 0:00:37.8]} 22. Rg2 {[%clk 0:00:18.5]} 22... Qe6 {[%clk 0:00:35]} 23. Rdg1 {[%clk 0:00:17.7]} 23... g6 {[%clk 0:00:31.1]} 24. e4 {[%clk 0:00:16.4]} 24... Nc6 {[%clk 0:00:29.4]} 25. Qg5 {[%clk 0:00:13.5]} 25... Nd4 {[%clk 0:00:27.9]} 26. Qh6 {[%clk 0:00:11.5]} 26... Nf3 {[%clk 0:00:26]} 27. Rxg6+ {[%clk 0:00:10.1]} 27... fxg6 {[%clk 0:00:24.2]} 28. Rxg6+ {[%clk 0:00:08.9]} 28... Qxg6 {[%clk 0:00:23.8]} 29. Qxg6+ {[%clk 0:00:07.9]} 29... hxg6 {[%clk 0:00:23.5]} 30. Kc2 {[%clk 0:00:07.3]} 30... Nd4+ {[%clk 0:00:23]} 31. Kc3 {[%clk 0:00:07.3]} 31... Rf2 {[%clk 0:00:22.6]} 32. b4 {[%clk 0:00:06.6]} 32... Rxa2 {[%clk 0:00:21.6]} 33. bxc5 {[%clk 0:00:05.8]} 33... Ne2+ {[%clk 0:00:21.2]} 34. Kb4 {[%clk 0:00:02.9]} 34... Rb2+ {[%clk 0:00:20.1]} 35. Ka3 {[%clk 0:00:02.2]} 35... Rd2 {[%clk 0:00:19.7]} 36. c6 {[%clk 0:00:00.8]} 36... Rxd3+ {[%clk 0:00:19.4]} 0-1

[Event "Live Chess"]
[Site "Chess.com"]
[Date "2010.12.14"]
[Round "-"]
[White "hipposcottimus"]
[Black "Beastin01"]
[Result "0-1"]
[CurrentPosition "rn2k1r1/ppp2p2/1b1p4/3Pp2Q/2P4B/8/P4PqP/RN3RK1 w q -"]
[Timezone "UTC"]
[ECO "C40"]
[ECOUrl "https://www.chess.com/openings/Kings-Pawn-Opening-Kings-Knight-Busch-Gass-Gambit"]
[UTCDate "2010.12.14"]
[UTCTime "03:51:15"]
[WhiteElo "1677"]
[BlackElo "1425"]
[TimeControl "60"]
[Termination "Beastin01 won by checkmate"]
[StartTime "03:51:15"]
[EndDate "2010.12.14"]
[EndTime "03:52:26"]
[Link "https://www.chess.com/game/live/77091312"]

1. e4 {[%clk 0:01:00]} 1... e5 {[%clk 0:01:00]} 2. Nf3 {[%clk 0:00:59.7]} 2... Bc5 {[%clk 0:00:58.2]} 3. b4 {[%clk 0:00:56.5]} 3... Bxb4 {[%clk 0:00:56]} 4. c3 {[%clk 0:00:56.3]} 4... Bc5 {[%clk 0:00:54.9]} 5. d4 {[%clk 0:00:56]} 5... Bb6 {[%clk 0:00:53.7]} 6. Be2 {[%clk 0:00:54.6]} 6... d6 {[%clk 0:00:53.2]} 7. O-O {[%clk 0:00:53.7]} 7... Nf6 {[%clk 0:00:49.3]} 8. Bg5 {[%clk 0:00:53.2]} 8... h6 {[%clk 0:00:47.4]} 9. Bh4 {[%clk 0:00:51.4]} 9... g5 {[%clk 0:00:45.8]} 10. Nxg5 {[%clk 0:00:51.1]} 10... hxg5 {[%clk 0:00:44.5]} 11. Bxg5 {[%clk 0:00:50.8]} 11... Rg8 {[%clk 0:00:44.1]} 12. Bh4 {[%clk 0:00:48.3]} 12... Be6 {[%clk 0:00:41]} 13. d5 {[%clk 0:00:46.6]} 13... Bxd5 {[%clk 0:00:36.9]} 14. exd5 {[%clk 0:00:44.9]} 14... Qd7 {[%clk 0:00:35.6]} 15. c4 {[%clk 0:00:44.5]} 15... Ne4 {[%clk 0:00:32.3]} 16. Bd3 {[%clk 0:00:41.4]} 16... Qg4 {[%clk 0:00:26.1]} 17. Bxe4 {[%clk 0:00:37]} 17... Qxe4 {[%clk 0:00:23.4]} 18. Qh5 {[%clk 0:00:36.2]} 18... Qxg2# {[%clk 0:00:22.1]} 0-1

[Event "Live Chess"]
[Site "Chess.com"]
[Date "2010.12.14"]
[Round "-"]
[White "Beastin01"]
[Black "hipposcottimus"]
[Result "0-1"]
[CurrentPosition "3r2k1/p5bp/6p1/2p2b2/5P2/P2rBQ2/3R3P/6K1 w - -"]
[Timezone "UTC"]
[ECO "D00"]
[ECOUrl "https://www.chess.com/openings/Queens-Pawn-Opening-1...d5-2.e3"]
[UTCDate "2010.12.14"]
[UTCTime "03:48:57"]
[WhiteElo "1411"]
[BlackElo "1689"]
[TimeControl "60"]
[Termination "hipposcottimus won on time"]
[StartTime "03:48:57"]
[EndDate "2010.12.14"]
[EndTime "03:50:58"]
[Link "https://www.chess.com/game/live/77090854"]

1. d4 {[%clk 0:01:00]} 1... d5 {[%clk 0:01:00]} 2. e3 {[%clk 0:00:59.6]} 2... c6 {[%clk 0:00:59.8]} 3. Bd3 {[%clk 0:00:59]} 3... Nd7 {[%clk 0:00:59.6]} 4. a3 {[%clk 0:00:58.4]} 4... e6 {[%clk 0:00:59.3]} 5. b4 {[%clk 0:00:57.7]} 5... f6 {[%clk 0:00:58.9]} 6. c4 {[%clk 0:00:57]} 6... e5 {[%clk 0:00:58.7]} 7. dxe5 {[%clk 0:00:56]} 7... fxe5 {[%clk 0:00:57.4]} 8. c5 {[%clk 0:00:54.2]} 8... e4 {[%clk 0:00:55.9]} 9. Qh5+ {[%clk 0:00:53.3]} 9... g6 {[%clk 0:00:53.5]} 10. Qe2 {[%clk 0:00:48.6]} 10... Bg7 {[%clk 0:00:53]} 11. Bc2 {[%clk 0:00:47.4]} 11... Ne7 {[%clk 0:00:52.5]} 12. Nc3 {[%clk 0:00:45.9]} 12... O-O {[%clk 0:00:52.1]} 13. Bb2 {[%clk 0:00:44.6]} 13... b6 {[%clk 0:00:51.8]} 14. f3 {[%clk 0:00:42.1]} 14... bxc5 {[%clk 0:00:50]} 15. bxc5 {[%clk 0:00:39.6]} 15... Nxc5 {[%clk 0:00:49.1]} 16. f4 {[%clk 0:00:38.3]} 16... Ba6 {[%clk 0:00:45.6]} 17. Qd1 {[%clk 0:00:34.2]} 17... Nf5 {[%clk 0:00:41.3]} 18. Bc1 {[%clk 0:00:31.6]} 18... Nd3+ {[%clk 0:00:38.8]} 19. Bxd3 {[%clk 0:00:29.9]} 19... Bxd3 {[%clk 0:00:38.4]} 20. Nge2 {[%clk 0:00:25.7]} 20... Qa5 {[%clk 0:00:37.9]} 21. Bd2 {[%clk 0:00:22.9]} 21... Qc7 {[%clk 0:00:33.6]} 22. O-O {[%clk 0:00:21.8]} 22... c5 {[%clk 0:00:33]} 23. Nb5 {[%clk 0:00:19.4]} 23... Qf7 {[%clk 0:00:30.7]} 24. Nd6 {[%clk 0:00:17.4]} 24... Qe6 {[%clk 0:00:28.5]} 25. Nxf5 {[%clk 0:00:16.4]} 25... Qxf5 {[%clk 0:00:28.2]} 26. Nc3 {[%clk 0:00:13.3]} 26... d4 {[%clk 0:00:26.1]} 27. Nxe4 {[%clk 0:00:11.7]} 27... Bxe4 {[%clk 0:00:23.9]} 28. Rf2 {[%clk 0:00:10.6]} 28... dxe3 {[%clk 0:00:20.8]} 29. Bxe3 {[%clk 0:00:09.4]} 29... Rad8 {[%clk 0:00:20.6]} 30. Qe2 {[%clk 0:00:08]} 30... Bxa1 {[%clk 0:00:20.2]} 31. g4 {[%clk 0:00:05]} 31... Bg7 {[%clk 0:00:19.8]} 32. gxf5 {[%clk 0:00:04.1]} 32... Bxf5 {[%clk 0:00:19.5]} 33. Qf3 {[%clk 0:00:03.3]} 33... Rd3 {[%clk 0:00:17.4]} 34. Rd2 {[%clk 0:00:00.6]} 34... Rfd8 {[%clk 0:00:15.6]} 0-1

[Event "Live Chess"]
[Site "Chess.com"]
[Date "2010.12.14"]
[Round "-"]
[White "hipposcottimus"]
[Black "Beastin01"]
[Result "1-0"]
[CurrentPosition "5r1k/2pq2p1/pp1p2r1/3P3Q/2P2p1P/2B5/P3RPP1/4R1K1 b - -"]
[Timezone "UTC"]
[ECO "C00"]
[ECOUrl "https://www.chess.com/openings/French-Defense-St-George-Defense-3.Nf3"]
[UTCDate "2010.12.14"]
[UTCTime "03:46:31"]
[WhiteElo "1686"]
[BlackElo "1414"]
[TimeControl "60"]
[Termination "hipposcottimus won on time"]
[StartTime "03:46:31"]
[EndDate "2010.12.14"]
[EndTime "03:48:29"]
[Link "https://www.chess.com/game/live/77090263"]

1. e4 {[%clk 0:01:00]} 1... e6 {[%clk 0:01:00]} 2. d4 {[%clk 0:00:59.6]} 2... a6 {[%clk 0:01:00]} 3. Nf3 {[%clk 0:00:58.4]} 3... h6 {[%clk 0:00:59.2]} 4. c4 {[%clk 0:00:58]} 4... b6 {[%clk 0:00:58]} 5. d5 {[%clk 0:00:57.7]} 5... d6 {[%clk 0:00:54.7]} 6. Be2 {[%clk 0:00:56]} 6... exd5 {[%clk 0:00:52.5]} 7. cxd5 {[%clk 0:00:55.1]} 7... Be7 {[%clk 0:00:49.2]} 8. O-O {[%clk 0:00:54.8]} 8... Nf6 {[%clk 0:00:48.6]} 9. e5 {[%clk 0:00:53.5]} 9... O-O {[%clk 0:00:48.6]} 10. exf6 {[%clk 0:00:52.5]} 10... Bxf6 {[%clk 0:00:47.7]} 11. Nc3 {[%clk 0:00:50.7]} 11... Bxc3 {[%clk 0:00:46.1]} 12. bxc3 {[%clk 0:00:50.5]} 12... Bf5 {[%clk 0:00:43.8]} 13. Bd3 {[%clk 0:00:46.4]} 13... Bxd3 {[%clk 0:00:42]} 14. Qxd3 {[%clk 0:00:46.2]} 14... Nd7 {[%clk 0:00:39.5]} 15. c4 {[%clk 0:00:45.9]} 15... Nc5 {[%clk 0:00:38.5]} 16. Qc3 {[%clk 0:00:43.8]} 16... Re8 {[%clk 0:00:37.5]} 17. Nd2 {[%clk 0:00:40.2]} 17... Qd7 {[%clk 0:00:36.5]} 18. Nb3 {[%clk 0:00:39.4]} 18... Ne4 {[%clk 0:00:34.9]} 19. Qf3 {[%clk 0:00:37]} 19... Re5 {[%clk 0:00:29.4]} 20. Nd2 {[%clk 0:00:36.5]} 20... Nxd2 {[%clk 0:00:27.3]} 21. Bxd2 {[%clk 0:00:35.8]} 21... Rf5 {[%clk 0:00:26.7]} 22. Qg3 {[%clk 0:00:35.3]} 22... Rf6 {[%clk 0:00:23.5]} 23. Rae1 {[%clk 0:00:30.7]} 23... Rg6 {[%clk 0:00:21]} 24. Qf3 {[%clk 0:00:27.1]} 24... Rf6 {[%clk 0:00:18.4]} 25. Qg3 {[%clk 0:00:26.2]} 25... Rf8 {[%clk 0:00:16.3]} 26. Re2 {[%clk 0:00:24.2]} 26... Rg6 {[%clk 0:00:14.7]} 27. Qf3 {[%clk 0:00:23]} 27... f5 {[%clk 0:00:10.1]} 28. Rfe1 {[%clk 0:00:21.6]} 28... f4 {[%clk 0:00:08.3]} 29. Bc3 {[%clk 0:00:18.7]} 29... Kh8 {[%clk 0:00:03.9]} 30. h4 {[%clk 0:00:17.4]} 30... h5 {[%clk 0:00:01.6]} 31. Qxh5+ {[%clk 0:00:15.8]} 1-0

[Event "Live Chess"]
[Site "Chess.com"]
[Date "2010.12.14"]
[Round "-"]
[White "Beastin01"]
[Black "hipposcottimus"]
[Result "0-1"]
[CurrentPosition "6k1/p5pp/3N1b2/5bp1/8/P7/5PPP/2r3K1 w - -"]
[Timezone "UTC"]
[ECO "D00"]
[ECOUrl "https://www.chess.com/openings/Queens-Pawn-Opening-1...d5-2.e3"]
[UTCDate "2010.12.14"]
[UTCTime "03:43:37"]
[WhiteElo "1417"]
[BlackElo "1683"]
[TimeControl "60"]
[Termination "hipposcottimus won by checkmate"]
[StartTime "03:43:37"]
[EndDate "2010.12.14"]
[EndTime "03:45:31"]
[Link "https://www.chess.com/game/live/77089668"]

1. d4 {[%clk 0:01:00]} 1... d5 {[%clk 0:01:00]} 2. e3 {[%clk 0:01:00]} 2... c6 {[%clk 0:00:58.6]} 3. a3 {[%clk 0:00:58.9]} 3... Nd7 {[%clk 0:00:58.3]} 4. Bd3 {[%clk 0:00:57.9]} 4... e6 {[%clk 0:00:58]} 5. Nc3 {[%clk 0:00:56.5]} 5... Ngf6 {[%clk 0:00:57.7]} 6. e4 {[%clk 0:00:55.8]} 6... c5 {[%clk 0:00:55.7]} 7. e5 {[%clk 0:00:55.2]} 7... cxd4 {[%clk 0:00:53.7]} 8. exf6 {[%clk 0:00:54]} 8... dxc3 {[%clk 0:00:52.4]} 9. bxc3 {[%clk 0:00:52.9]} 9... Qxf6 {[%clk 0:00:50]} 10. Nf3 {[%clk 0:00:50.9]} 10... Qxc3+ {[%clk 0:00:48.6]} 11. Qd2 {[%clk 0:00:46.6]} 11... Qxa1 {[%clk 0:00:47.3]} 12. O-O {[%clk 0:00:45]} 12... Qf6 {[%clk 0:00:46.1]} 13. c3 {[%clk 0:00:43.8]} 13... Be7 {[%clk 0:00:45.4]} 14. Bb2 {[%clk 0:00:43.1]} 14... O-O {[%clk 0:00:44.3]} 15. c4 {[%clk 0:00:42.6]} 15... Qg6 {[%clk 0:00:44]} 16. Bxg6 {[%clk 0:00:41]} 16... fxg6 {[%clk 0:00:42.6]} 17. Ng5 {[%clk 0:00:38.5]} 17... dxc4 {[%clk 0:00:40]} 18. Nxe6 {[%clk 0:00:36.7]} 18... Rf6 {[%clk 0:00:35.5]} 19. Bxf6 {[%clk 0:00:31.9]} 19... Bxf6 {[%clk 0:00:35.2]} 20. Nc7 {[%clk 0:00:30.8]} 20... Rb8 {[%clk 0:00:31.9]} 21. Qf4 {[%clk 0:00:29.4]} 21... Ne5 {[%clk 0:00:30.3]} 22. Nb5 {[%clk 0:00:25.6]} 22... Bf5 {[%clk 0:00:29.9]} 23. Nd6 {[%clk 0:00:22.6]} 23... Rf8 {[%clk 0:00:29.6]} 24. Rc1 {[%clk 0:00:20.5]} 24... Be7 {[%clk 0:00:28.4]} 25. Nxb7 {[%clk 0:00:18.6]} 25... g5 {[%clk 0:00:18.6]} 26. Qxc4+ {[%clk 0:00:17.6]} 26... Nxc4 {[%clk 0:00:16.5]} 27. Rxc4 {[%clk 0:00:16.8]} 27... Rb8 {[%clk 0:00:16.1]} 28. Rc7 {[%clk 0:00:15.5]} 28... Bf6 {[%clk 0:00:15.2]} 29. Nd6 {[%clk 0:00:13.9]} 29... Rb1+ {[%clk 0:00:12.4]} 30. Rc1 {[%clk 0:00:09.7]} 30... Rxc1# {[%clk 0:00:11.8]} 0-1

[Event "Live Chess"]
[Site "Chess.com"]
[Date "2010.12.14"]
[Round "-"]
[White "hipposcottimus"]
[Black "Beastin01"]
[Result "0-1"]
[CurrentPosition "6k1/p4pp1/1p5p/1P3K2/P2b3P/5P2/8/4q3 w - -"]
[Timezone "UTC"]
[ECO "C00"]
[ECOUrl "https://www.chess.com/openings/French-Defense-Normal-Variation"]
[UTCDate "2010.12.14"]
[UTCTime "03:40:20"]
[WhiteElo "1680"]
[BlackElo "1420"]
[TimeControl "60"]
[Termination "Beastin01 won on time"]
[StartTime "03:40:20"]
[EndDate "2010.12.14"]
[EndTime "03:42:44"]
[Link "https://www.chess.com/game/live/77088929"]

1. e4 {[%clk 0:01:00]} 1... e6 {[%clk 0:01:00]} 2. d4 {[%clk 0:00:58.4]} 2... h6 {[%clk 0:00:59.5]} 3. Nf3 {[%clk 0:00:57.6]} 3... d6 {[%clk 0:00:59]} 4. c4 {[%clk 0:00:52.6]} 4... c6 {[%clk 0:00:58.5]} 5. Nc3 {[%clk 0:00:52.1]} 5... Qa5 {[%clk 0:00:56.2]} 6. Bd2 {[%clk 0:00:49.4]} 6... Qb6 {[%clk 0:00:55.6]} 7. Na4 {[%clk 0:00:48.4]} 7... Qc7 {[%clk 0:00:53.6]} 8. c5 {[%clk 0:00:47.5]} 8... Bd7 {[%clk 0:00:50.1]} 9. cxd6 {[%clk 0:00:43.5]} 9... Qxd6 {[%clk 0:00:48.9]} 10. e5 {[%clk 0:00:43.3]} 10... Qe7 {[%clk 0:00:46.5]} 11. Be2 {[%clk 0:00:41.7]} 11... c5 {[%clk 0:00:45.8]} 12. dxc5 {[%clk 0:00:39.9]} 12... Qxc5 {[%clk 0:00:42.6]} 13. Nxc5 {[%clk 0:00:37.3]} 13... Bc6 {[%clk 0:00:41.2]} 14. O-O {[%clk 0:00:36.5]} 14... Bxc5 {[%clk 0:00:39]} 15. Rc1 {[%clk 0:00:34.2]} 15... b6 {[%clk 0:00:37.4]} 16. b4 {[%clk 0:00:33.6]} 16... Be7 {[%clk 0:00:35.1]} 17. b5 {[%clk 0:00:31.6]} 17... Bd5 {[%clk 0:00:32.9]} 18. a4 {[%clk 0:00:29.2]} 18... Nd7 {[%clk 0:00:31.7]} 19. Rc7 {[%clk 0:00:26.9]} 19... Ngf6 {[%clk 0:00:29.8]} 20. Qc1 {[%clk 0:00:24.1]} 20... Ne4 {[%clk 0:00:27.6]} 21. Rc8+ {[%clk 0:00:22.3]} 21... Rxc8 {[%clk 0:00:24.8]} 22. Qxc8+ {[%clk 0:00:20.3]} 22... Bd8 {[%clk 0:00:23.7]} 23. Bc1 {[%clk 0:00:15.5]} 23... O-O {[%clk 0:00:22.3]} 24. Bb2 {[%clk 0:00:14.9]} 24... Nec5 {[%clk 0:00:17.7]} 25. Qb7 {[%clk 0:00:12.4]} 25... Nxb7 {[%clk 0:00:15.1]} 26. Bd4 {[%clk 0:00:09.7]} 26... Na5 {[%clk 0:00:14.2]} 27. Be3 {[%clk 0:00:09.4]} 27... Nc4 {[%clk 0:00:13.1]} 28. Re1 {[%clk 0:00:09.1]} 28... Nxe3 {[%clk 0:00:12.2]} 29. fxe3 {[%clk 0:00:08.7]} 29... Bxf3 {[%clk 0:00:11]} 30. Bd1 {[%clk 0:00:08.4]} 30... Nxe5 {[%clk 0:00:10.3]} 31. Bxf3 {[%clk 0:00:07.4]} 31... Nxf3+ {[%clk 0:00:09.3]} 32. gxf3 {[%clk 0:00:07.2]} 32... Bg5 {[%clk 0:00:08.4]} 33. Rf1 {[%clk 0:00:06.9]} 33... Bxe3+ {[%clk 0:00:07.3]} 34. Kg2 {[%clk 0:00:06.7]} 34... Bc5 {[%clk 0:00:06.8]} 35. Re1 {[%clk 0:00:06.4]} 35... Rd8 {[%clk 0:00:06.2]} 36. Rc1 {[%clk 0:00:06.1]} 36... Rd2+ {[%clk 0:00:05.2]} 37. Kg3 {[%clk 0:00:05.1]} 37... Be3 {[%clk 0:00:04.3]} 38. Kg4 {[%clk 0:00:04.4]} 38... Rg2+ {[%clk 0:00:03.5]} 39. Kh3 {[%clk 0:00:02.7]} 39... Bxc1 {[%clk 0:00:03.5]} 40. Kxg2 {[%clk 0:00:02.3]} 40... Bb2 {[%clk 0:00:01.2]} 41. h4 {[%clk 0:00:02]} 41... Bd4 {[%clk 0:00:00.6]} 42. Kh3 {[%clk 0:00:01.8]} 42... e5 {[%clk 0:00:00.2]} 43. Kg2 {[%clk 0:00:01.5]} 43... e4 {[%clk 0:00:00.2]} 44. Kh3 {[%clk 0:00:01.2]} 44... e3 {[%clk 0:00:00.2]} 45. Kh2 {[%clk 0:00:01]} 45... e2 {[%clk 0:00:00.2]} 46. Kg3 {[%clk 0:00:00.7]} 46... e1=Q+ {[%clk 0:00:00.2]} 47. Kg4 {[%clk 0:00:00.4]} 47... Qe2 {[%clk 0:00:00.2]} 48. Kf5 {[%clk 0:00:00.1]} 48... Qe1 {[%clk 0:00:00.2]} 0-1